fUSD/lending_fUSD_20240122
["ID","MTS","AMOUNT","RATE_DAILY","PERIOD"]
[312509611,1705935364391,-1485.29,0.00057808,120]
[312509612,1705935364426,-699.12,0.00057808,120]
[312509613,1705935364460,-1113.39,0.00057808,120]
[312509614,1705935364502,-500.0,0.00057808,120]
[312509615,1705935364535,-1325.84,0.00057808,120]
[312509616,1705935364570,-610.32,0.00057808,120]
[312509617,1705935364603,-500.0,0.00057808,120]
[312509618,1705935364636,-523.28236019,0.00057808,120]
[312509619,1705935364671,-977.5,0.00057808,120]
[312509620,1705935364704,-1197.96,0.00057808,120]
[312509621,1705935364740,-680.84,0.00057808,120]
[312509622,1705935364780,-1447.9,0.00057808,120]
[312509623,1705935364815,-768.63,0.00057808,120]
[312509624,1705935364852,-6620.65,0.00057808,120]
[312509625,1705935364887,-4857.5,0.00057808,120]
[312509626,1705935364923,-163.78719149,0.00057808,120]
[312509627,1705935364959,-500.0,0.00057808,120]
[312509628,1705935364997,-2086.5,0.00057808,120]
[312509629,1705935365040,-1199.49,0.00057808,120]
[312509630,1705935365079,-2054.67,0.00057808,120]
[312509631,1705935365118,-500.0,0.00057808,120]
[312509632,1705935365158,-500.0,0.00057808,120]
[312509633,1705935365201,-519.19,0.00057808,120]
[312509634,1705935365247,-886.41,0.00057808,120]
[312509635,1705935365295,-500.0,0.00057808,120]
[312509636,1705935365339,-10248.86,0.00057808,120]
[312509637,1705935365380,-1103.75,0.00057808,120]
[312509638,1705935365420,-500.0,0.00057808,120]
[312509639,1705935365459,-751.87,0.00057808,120]
[312509640,1705935365500,-3237.18,0.00057808,120]
[312509641,1705935365771,-2009.92,0.00057808,120]
[312509642,1705935365813,-789.59,0.00057808,120]
[312509643,1705935365852,-685.82,0.00057808,120]
[312509644,1705935365890,-500.0,0.00057808,120]
[312509645,1705935365929,-4264.33,0.00057808,120]
[312509646,1705935365968,-1535.34,0.00057808,120]
[312509647,1705935366009,-809.7,0.00057808,120]
[312509648,1705935366048,-1154.09,0.00057808,120]
[312509649,1705935366088,-1697.89,0.00057808,120]
[312509650,1705935366130,-1596.19,0.00057808,120]
[312509651,1705935366171,-964.24,0.00057808,120]
[312509652,1705935366210,-1154.51,0.00057808,120]
[312509653,1705935366251,-1595.7,0.00057808,120]
[312509654,1705935366290,-500.0,0.00057808,120]
[312509655,1705935366329,-2914.21,0.00057808,120]
[312509656,1705935366368,-1552.88,0.00057808,120]
[312509657,1705935366408,-608.04,0.00057808,120]
[312509658,1705935366449,-980.8,0.00057808,120]
[312509659,1705935366485,-700.43,0.00057808,120]
[312509660,1705935366523,-696.01,0.00057808,120]
[312509661,1705935366560,-1757.28,0.00057808,120]
[312509662,1705935366596,-1171.38,0.00057808,120]
[312509663,1705935366633,-665.51,0.00057808,120]
[312509664,1705935366671,-1708.66,0.00057808,120]
[312509665,1705935366707,-559.65,0.00057808,120]
[312509666,1705935366747,-1273.88,0.00057808,120]
[312509667,1705935366788,-536.79,0.00057808,120]
[312509668,1705935366826,-520.77,0.00057808,120]
[312509669,1705935366865,-1047.69,0.00057808,120]
[312509670,1705935366902,-1774.41,0.00057808,120]
[312509671,1705935366939,-1003.68,0.00057808,120]
[312509672,1705935366978,-714.84,0.00057808,120]
[312509673,1705935367016,-1882.22,0.00057808,120]
[312509674,1705935367052,-2030.56,0.00057808,120]
[312509675,1705935367090,-500.0,0.00057808,120]
[312509676,1705935367129,-1118.09,0.00057808,120]
[312509677,1705935367170,-1661.46,0.00057808,120]
[312509678,1705935367211,-2145.54,0.00057808,120]
[312509679,1705935367254,-500.0,0.00057808,120]
[312509680,1705935367294,-885.62,0.00057852,120]
[312509681,1705935367332,-50000.0,0.0005787,90]
[312509682,1705935367371,-150.0,0.000579,100]
[312509683,1705935367411,-200.0,0.00057987,95]
[312509684,1705935367448,-4196.15,0.00057988,120]
[312509685,1705935367488,-1000.0,0.00057999,120]
[312509686,1705935367529,-50000.0,0.00058,48]
[312509687,1705935367568,-400.0,0.00058,120]
[312509688,1705935367606,-410.582,0.00058,60]
[312509689,1705935367643,-250.0,0.00058,120]
[312509690,1705935367679,-300.0,0.00058,37]
[312509691,1705935367715,-1964.895124,0.00058,80]
[312509692,1705935367753,-150.0,0.00058,80]
[312509693,1705935367789,-150.40437152,0.00058025,75]
[312509694,1705935367826,-350.0,0.00058027,120]
[312509695,1705935367862,-500.0,0.00058082,120]
[312509696,1705935367896,-331.74368273,0.00058082,120]
[312509697,1705935367931,-500.0,0.00058082,120]
[312509698,1705935367968,-500.0,0.00058082,120]
[312509699,1705935368004,-559.06,0.00058082,120]
[312509700,1705935368042,-500.0,0.00058082,120]
[312509701,1705935368082,-500.0,0.00058082,120]
[312509702,1705935368122,-406.76309276,0.00058082,120]
[312509703,1705935368162,-500.0,0.00058082,120]
[312509704,1705935368203,-500.0,0.00058082,120]
[312509705,1705935368243,-500.0,0.00058082,120]
[312509706,1705935368283,-500.0,0.00058082,120]
[312509707,1705935368331,-500.0,0.00058082,120]
[312509708,1705935368372,-500.0,0.00058082,120]
[312509709,1705935368414,-500.0,0.00058082,120]
[312509710,1705935368453,-626.59,0.00058082,120]
[312509711,1705935368490,-576.13773889,0.00058082,120]
[312509712,1705935368527,-500.0,0.00058082,120]
[312509713,1705935368563,-464.57331534,0.00058082,120]
[312509714,1705935368601,-500.0,0.00058082,120]
[312509715,1705935368638,-711.06,0.00058082,120]
[312509716,1705935368675,-714.27,0.00058082,120]
[312509717,1705935368711,-918.11,0.00058082,120]
[312509718,1705935368747,-363.20104813,0.00058082,120]
[312509719,1705935368783,-687.84,0.00058082,120]
[312509720,1705935368818,-500.0,0.00058082,120]
[312509721,1705935368854,-587.61,0.00058082,120]
[312509722,1705935368889,-500.0,0.00058082,120]
[312509723,1705935368923,-882.35,0.00058082,120]
[312509724,1705935368958,-831.94,0.00058082,120]
[312509725,1705935368993,-1066.83,0.00058082,120]
[312509726,1705935369032,-506.4,0.00058082,120]
[312509727,1705935369068,-500.0,0.00058082,120]
[312509728,1705935369103,-692.09,0.00058082,120]
[312509729,1705935369137,-500.0,0.00058082,120]
[312509730,1705935369177,-500.0,0.00058082,120]
[312509731,1705935369214,-548.63,0.00058082,120]
[312509732,1705935369251,-726.93,0.00058082,120]
[312509733,1705935369286,-500.0,0.00058082,120]
[312509734,1705935369320,-801.5,0.00058082,120]
[312509735,1705935369357,-533.44,0.00058082,120]
[312509736,1705935369392,-500.0,0.00058082,120]
[312509737,1705935369429,-500.0,0.00058082,120]
[312509738,1705935369464,-517.9,0.00058082,120]
[312509739,1705935369498,-500.0,0.00058082,120]
[312509740,1705935369535,-500.0,0.00058082,120]
[312509741,1705935369567,-500.0,0.00058082,120]
[312509742,1705935369600,-539.03,0.00058082,120]
[312509743,1705935369634,-500.0,0.00058082,120]
[312509744,1705935369668,-541.94,0.00058082,120]
[312509745,1705935369898,-628.32,0.00058082,120]
[312509746,1705935369934,-1064.71,0.00058082,120]
[312509747,1705935369971,-500.0,0.00058082,120]
[312509748,1705935370008,-500.0,0.00058082,120]
[312509749,1705935370053,-500.0,0.00058082,120]
[312509750,1705935370097,-500.0,0.00058082,120]
[312509751,1705935370138,-500.0,0.00058082,120]
[312509752,1705935370182,-688.57,0.00058082,120]
[312509753,1705935370226,-515.35,0.00058082,120]
[312509754,1705935370270,-500.0,0.00058082,120]
[312509755,1705935370313,-532.26,0.00058082,120]
[312509756,1705935370354,-197.757442,0.00058082,120]
[312509757,1705935370394,-429.58,0.00058082,120]
[312509758,1705935370434,-511.93,0.00058082,120]
[312509759,1705935370471,-852.71,0.00058082,120]
[312509760,1705935370509,-500.0,0.00058082,120]
[312509761,1705935370546,-425.89977667,0.00058082,120]
[312509762,1705935370583,-555.5090608,0.00058082,120]
[312509763,1705935370621,-749.91,0.00058082,120]
[312509764,1705935370658,-500.0,0.00058082,120]
[312509765,1705935370693,-500.0,0.00058082,120]
[312509766,1705935370729,-500.0,0.00058082,120]
[312509767,1705935370767,-500.0,0.00058082,120]
[312509768,1705935370805,-500.0,0.00058082,120]
[312509769,1705935370844,-706.74,0.00058082,120]
[312509770,1705935370881,-500.0,0.00058082,120]
[312509771,1705935370919,-681.22,0.00058082,120]
[312509772,1705935370957,-500.0,0.00058082,120]
[312509773,1705935370993,-520.16,0.00058082,120]
[312509774,1705935371030,-978.9,0.00058082,120]
[312509775,1705935371065,-1380.88,0.00058082,120]
[312509776,1705935371102,-570.7,0.00058082,120]
[312509777,1705935371137,-500.0,0.00058082,120]
[312509778,1705935371173,-1255.4,0.00058082,120]
[312509779,1705935371208,-626.95794637,0.00058082,120]
[312509780,1705935371243,-1221.5,0.00058082,120]
[312509781,1705935371283,-1447.81,0.00058082,120]
[312509782,1705935371321,-500.0,0.00058082,120]
[312509783,1705935371360,-500.0,0.00058082,120]
[312509784,1705935371400,-2684.03,0.00058082,120]
[312509785,1705935371437,-970.29,0.00058082,120]
[312509786,1705935371476,-1726.87,0.00058082,120]
[312509787,1705935371516,-709.57,0.00058082,120]
[312509788,1705935371551,-556.49,0.00058082,120]
[312509789,1705935371587,-500.0,0.00058082,120]
[312509790,1705935371622,-1387.83,0.00058082,120]
[312509791,1705935371656,-717.18,0.00058082,120]
[312509792,1705935371691,-1397.88,0.00058082,120]
[312509793,1705935371724,-610.22,0.00058082,120]
[312509794,1705935371760,-1037.49,0.00058082,120]
[312509795,1705935371794,-937.59,0.00058082,120]
[312509796,1705935371827,-510.67,0.00058082,120]
[312509797,1705935371860,-721.94,0.00058082,120]
[312509798,1705935371900,-658.41,0.00058082,120]
[312509799,1705935371934,-500.0,0.00058082,120]
[312509800,1705935371968,-1324.43,0.00058082,120]
[312509801,1705935372004,-1074.78,0.00058082,120]
[312509802,1705935372039,-854.08,0.00058082,120]
[312509803,1705935372073,-500.0,0.00058082,120]
[312509804,1705935372107,-669.07,0.00058082,120]
[312509805,1705935372142,-1043.64,0.00058082,120]
[312509806,1705935372176,-500.0,0.00058082,120]
[312509807,1705935372214,-1068.91,0.00058082,120]
[312509808,1705935372249,-1264.76,0.00058082,120]
[312509809,1705935372287,-537.28,0.00058082,120]
[312509810,1705935372320,-500.0,0.00058082,120]
[312509811,1705935372354,-738.6,0.00058082,120]
[312509812,1705935372391,-660.61,0.00058082,120]
[312509813,1705935372426,-500.0,0.00058082,120]
[312509814,1705935372461,-700.4,0.00058082,120]
[312509815,1705935372496,-500.0,0.00058082,120]
[312509816,1705935372531,-821.95,0.00058082,120]
[312509817,1705935372565,-648.78,0.00058082,120]
[312509818,1705935372599,-722.7,0.00058082,120]
[312509819,1705935372633,-1066.38,0.00058082,120]
[312509820,1705935372666,-2325.98,0.00058082,120]
[312509821,1705935372699,-500.0,0.00058082,120]
[312509822,1705935372731,-1073.56,0.00058082,120]
[312509823,1705935372766,-500.0,0.00058082,120]
[312509824,1705935372798,-972.0,0.00058082,120]
[312509825,1705935372831,-532.36,0.00058082,120]
[312509826,1705935372864,-600.0,0.00058082,120]
[312509827,1705935372898,-1793.95,0.00058082,120]
[312509828,1705935372930,-500.0,0.00058082,120]
[312509829,1705935372964,-290.06888026,0.00058082,120]
[312509830,1705935372997,-500.0,0.00058082,120]
[312509831,1705935373034,-960.21,0.00058082,120]
[312509832,1705935373068,-1245.11,0.00058082,120]
[312509833,1705935373106,-500.0,0.00058082,120]
[312509834,1705935373144,-1202.84,0.00058082,120]
[312509835,1705935373180,-500.0,0.00058082,120]
[312509836,1705935373214,-1089.12,0.00058082,120]
[312509837,1705935373251,-674.26,0.00058082,120]
[312509838,1705935373288,-1121.58,0.00058082,120]
[312509839,1705935373325,-1148.71,0.00058082,120]
[312509840,1705935373361,-194.61823517,0.00058082,120]
[312509841,1705935373395,-782.17,0.00058082,120]
[312509842,1705935373431,-500.0,0.00058082,120]
[312509843,1705935373465,-1269.81,0.00058082,120]
[312509844,1705935373500,-1163.79,0.00058082,120]
[312509845,1705935373537,-755.55,0.00058082,120]
[312509846,1705935373571,-590.73,0.00058082,120]
[312509847,1705935373608,-500.0,0.00058082,120]
[312509848,1705935373643,-653.94,0.00058082,120]
[312509849,1705935373868,-1082.1,0.00058082,120]
[312509850,1705935373905,-500.0,0.00058082,120]
[312509851,1705935373940,-1119.29,0.00058082,120]
[312509852,1705935373976,-884.87,0.00058082,120]
[312509853,1705935374011,-590.44,0.00058082,120]
[312509854,1705935374050,-1021.29,0.00058082,120]
[312509855,1705935374090,-500.0,0.00058082,120]
[312509856,1705935374127,-557.86,0.00058082,120]
[312509857,1705935374164,-922.84,0.00058082,120]
[312509858,1705935374200,-1360.93,0.00058082,120]
[312509859,1705935374235,-854.16,0.00058082,120]
[312509860,1705935374271,-500.0,0.00058082,120]
[312509861,1705935374306,-612.83,0.00058082,120]
[312509862,1705935374340,-763.7,0.00058082,120]
[312509863,1705935374376,-500.0,0.00058082,120]
[312509864,1705935374413,-862.53,0.00058082,120]
[312509865,1705935374449,-709.99,0.00058082,120]
[312509866,1705935374484,-716.16,0.00058082,120]
[312509867,1705935374517,-743.65,0.00058082,120]
[312509868,1705935374552,-500.0,0.00058082,120]
[312509869,1705935374585,-765.86,0.00058082,120]
[312509870,1705935374618,-501.89,0.00058082,120]
[312509871,1705935374651,-1960.91,0.00058082,120]
[312509872,1705935374684,-500.0,0.00058082,120]
[312509873,1705935374719,-864.85,0.00058082,120]
[312509874,1705935374754,-895.93,0.00058082,120]
[312509875,1705935374789,-375.02,0.00058082,120]
[312509876,1705935374823,-652.75,0.00058082,120]
[312509877,1705935374859,-1017.75,0.00058082,120]
[312509878,1705935374894,-718.71,0.00058082,120]
[312509879,1705935374927,-180.09878879,0.00058082,120]
[312509880,1705935374962,-950.95,0.00058082,120]
[312509881,1705935374999,-1166.26,0.00058082,120]
[312509882,1705935375044,-1163.88,0.00058082,120]
[312509883,1705935375082,-706.58,0.00058082,120]
[312509884,1705935375121,-500.0,0.00058082,120]
[312509885,1705935375161,-775.78,0.00058082,120]
[312509886,1705935375200,-1841.93,0.00058082,120]
[312509887,1705935375237,-604.25,0.00058082,120]
[312509888,1705935375276,-744.8,0.00058082,120]
[312509889,1705935375312,-500.0,0.00058082,120]
[312509890,1705935375348,-803.23,0.00058082,120]
[312509891,1705935375383,-1391.49,0.00058082,120]
[312509892,1705935375419,-500.0,0.00058082,120]
[312509893,1705935375454,-743.79,0.00058082,120]
[312509894,1705935375490,-758.95,0.00058082,120]
[312509895,1705935375527,-575.63,0.00058082,120]
[312509896,1705935375561,-500.0,0.00058082,120]
[312509897,1705935375596,-805.81,0.00058082,120]
[312509898,1705935375630,-869.66,0.00058082,120]
[312509899,1705935375663,-500.0,0.00058082,120]
[312509900,1705935375697,-907.16,0.00058082,120]
[312509901,1705935375730,-789.34,0.00058082,120]
[312509902,1705935375765,-619.23,0.00058082,120]
[312509903,1705935375801,-1452.65,0.00058082,120]
[312509904,1705935375835,-696.15,0.00058082,120]
[312509905,1705935375868,-593.79,0.00058082,120]
[312509906,1705935375903,-500.0,0.00058082,120]
[312509907,1705935375944,-836.62,0.00058082,120]
[312509908,1705935375982,-1334.13,0.00058082,120]
[312509909,1705935376022,-837.72,0.00058082,120]
[312509910,1705935376061,-623.18,0.00058082,120]
[312509911,1705935376100,-1323.21,0.00058082,120]
[312509912,1705935376139,-557.03,0.00058082,120]
[312509913,1705935376177,-609.57,0.00058082,120]
[312509914,1705935376215,-1742.89,0.00058082,120]
[312509915,1705935376258,-951.02,0.00058082,120]
[312509916,1705935376296,-500.0,0.00058082,120]
[312509917,1705935376335,-650.96,0.00058082,120]
[312509918,1705935376372,-762.89,0.00058082,120]
[312509919,1705935376413,-500.0,0.00058082,120]
[312509920,1705935376451,-659.39,0.00058082,120]
[312509921,1705935376486,-500.0,0.00058082,120]
[312509922,1705935376518,-500.0,0.00058082,120]
[312509923,1705935376551,-651.75,0.00058082,120]
[312509924,1705935376584,-500.0,0.00058082,120]
[312509925,1705935376617,-500.0,0.00058082,120]
[312509926,1705935376650,-852.44,0.00058082,120]
[312509927,1705935376682,-500.0,0.00058082,120]
[312509928,1705935376716,-1607.72,0.00058082,120]
[312509929,1705935376751,-1788.51,0.00058082,120]
[312509930,1705935376787,-500.0,0.00058082,120]
[312509931,1705935376820,-744.04,0.00058082,120]
[312509932,1705935376855,-669.85,0.00058082,120]
[312509933,1705935376891,-500.0,0.00058082,120]
[312509934,1705935376927,-645.14,0.00058082,120]
[312509935,1705935376964,-608.8,0.00058082,120]
[312509936,1705935377001,-702.16,0.00058082,120]
[312509937,1705935377045,-559.87,0.00058082,120]
[312509938,1705935377084,-500.0,0.00058082,120]
[312509939,1705935377128,-1326.85,0.00058082,120]
[312509940,1705935377173,-1404.36,0.00058082,120]
[312509941,1705935377216,-1490.02,0.00058082,120]
[312509942,1705935377261,-500.0,0.00058082,120]
[312509943,1705935377300,-1273.58,0.00058082,120]
[312509944,1705935377334,-500.0,0.00058082,120]
[312509945,1705935377374,-1577.88,0.00058082,120]
[312509946,1705935377414,-850.44,0.00058082,120]
[312509947,1705935377453,-500.0,0.00058082,120]
[312509948,1705935377492,-665.34,0.00058082,120]
[312509949,1705935377533,-500.0,0.00058082,120]
[312509950,1705935377570,-836.88,0.00058082,120]
[312509951,1705935377605,-500.0,0.00058082,120]
[312509952,1705935377808,-1144.66,0.00058082,120]
[312509953,1705935377849,-500.0,0.00058082,120]
[312509954,1705935377884,-500.0,0.00058082,120]
[312509955,1705935377919,-649.5,0.00058082,120]
[312509956,1705935377954,-1273.46,0.00058082,120]
[312509957,1705935377993,-500.0,0.00058082,120]
[312509958,1705935378033,-1047.97,0.00058082,120]
[312509959,1705935378069,-500.0,0.00058082,120]
[312509960,1705935378105,-575.18942423,0.00058082,120]
[312509961,1705935378147,-600.2,0.00058082,120]
[312509962,1705935378190,-754.61,0.00058082,120]
[312509963,1705935378232,-852.62,0.00058082,120]
[312509964,1705935378272,-500.0,0.00058082,120]
[312509965,1705935378312,-1099.97,0.00058082,120]
[312509966,1705935378357,-500.0,0.00058082,120]
[312509967,1705935378396,-836.94,0.00058082,120]
[312509968,1705935378437,-857.36,0.00058082,120]
[312509969,1705935378473,-500.0,0.00058082,120]
[312509970,1705935378512,-597.17,0.00058082,120]
[312509971,1705935378549,-1527.68,0.00058082,120]
[312509972,1705935378586,-806.43,0.00058082,120]
[312509973,1705935378622,-2110.23,0.00058082,120]
[312509974,1705935378658,-500.0,0.00058082,120]
[312509975,1705935378693,-552.99,0.00058082,120]
[312509976,1705935378728,-1034.47,0.00058082,120]
[312509977,1705935378765,-1707.75,0.00058082,120]
[312509978,1705935378800,-1844.2,0.00058082,120]
[312509979,1705935378834,-507.74544448,0.00058082,120]
[312509980,1705935378868,-1129.13,0.00058082,120]
[312509981,1705935378902,-599.85,0.00058082,120]
[312509982,1705935378935,-500.0,0.00058082,120]
[312509983,1705935378973,-932.99,0.00058082,120]
[312509984,1705935379011,-2637.9,0.00058082,120]
[312509985,1705935379047,-1394.47,0.00058082,120]
[312509986,1705935379082,-756.66,0.00058082,120]
[312509987,1705935379117,-500.0,0.00058082,120]
[312509988,1705935379151,-591.22,0.00058082,120]
[312509989,1705935379186,-1651.7,0.00058082,120]
[312509990,1705935379221,-970.35,0.00058082,120]
[312509991,1705935379258,-506.16,0.00058082,120]
[312509992,1705935379293,-500.0,0.00058082,120]
[312509993,1705935379327,-920.91,0.00058082,120]
[312509994,1705935379363,-752.54,0.00058082,120]
[312509995,1705935379397,-653.54,0.00058082,120]
[312509996,1705935379431,-1751.16,0.00058082,120]
[312509997,1705935379465,-652.01,0.00058082,120]
[312509998,1705935379498,-631.92,0.00058082,120]
[312509999,1705935379533,-650.78,0.00058082,120]
[312510000,1705935379567,-752.76,0.00058082,120]
[312510001,1705935379601,-500.0,0.00058082,120]
[312510002,1705935379635,-2270.34,0.00058082,120]
[312510003,1705935379669,-1786.0,0.00058082,120]
[312510004,1705935379702,-500.0,0.00058082,120]
[312510005,1705935379737,-1361.82,0.00058082,120]
[312510006,1705935379771,-3797.03,0.00058082,120]
[312510007,1705935379806,-1781.02,0.00058082,120]
[312510008,1705935379840,-1364.57,0.00058082,120]
[312510009,1705935379875,-1756.9,0.00058082,120]
[312510010,1705935379909,-790.71,0.00058082,120]
[312510011,1705935379943,-598.0,0.00058082,120]
[312510012,1705935379978,-609.8,0.00058082,120]
[312510013,1705935380011,-543.53,0.00058082,120]
[312510014,1705935380045,-761.51,0.00058082,120]
[312510015,1705935380081,-1909.96,0.00058082,120]
[312510016,1705935380114,-1240.73,0.00058082,120]
[312510017,1705935380148,-12125.73,0.00058082,120]
[312510018,1705935380182,-2651.29,0.00058082,120]
[312510019,1705935380217,-500.0,0.00058082,120]
[312510020,1705935380253,-1183.91,0.00058082,120]
[312510021,1705935380288,-1284.7,0.00058082,120]
[312510022,1705935380323,-500.0,0.00058082,120]
[312510023,1705935380357,-5137.25,0.00058082,120]
[312510024,1705935380391,-1103.44,0.00058082,120]
[312510025,1705935380426,-500.0,0.00058082,120]
[312510026,1705935380463,-500.0,0.00058082,120]
[312510027,1705935380498,-500.0,0.00058082,120]
[312510028,1705935380533,-500.0,0.00058082,120]
[312510029,1705935380570,-2169.34,0.00058082,120]
[312510030,1705935380606,-12713.95,0.00058082,120]
[312510031,1705935380642,-1882.98,0.00058082,120]
[312510032,1705935380678,-967.39,0.00058082,120]
[312510033,1705935380713,-1657.15,0.00058082,120]
[312510034,1705935380747,-943.25,0.00058082,120]
[312510035,1705935380784,-500.0,0.00058082,120]
[312510036,1705935380819,-1729.69,0.00058082,120]
[312510037,1705935380853,-569.65,0.00058082,120]
[312510038,1705935380888,-606.66,0.00058082,120]
[312510039,1705935380922,-2125.62,0.00058082,120]
[312510040,1705935380957,-1419.55,0.00058082,120]
[312510041,1705935380993,-1565.88,0.00058082,120]
[312510042,1705935381031,-689.11,0.00058082,120]
[312510043,1705935381068,-1689.91,0.00058082,120]
[312510044,1705935381105,-1921.07,0.00058082,120]
[312510045,1705935381144,-2015.32,0.00058082,120]
[312510046,1705935381183,-700.71,0.00058082,120]
[312510047,1705935381222,-500.0,0.00058082,120]
[312510048,1705935381267,-1539.91,0.00058082,120]
[312510049,1705935381308,-1927.03,0.00058082,120]
[312510050,1705935381350,-1314.85,0.00058082,120]
[312510051,1705935381399,-1686.46,0.00058082,120]
[312510052,1705935381442,-500.0,0.00058082,120]
[312510053,1705935381484,-677.55,0.00058082,120]
[312510054,1705935381522,-1985.74,0.00058082,120]
[312510055,1705935381559,-550.06,0.00058082,120]
[312510056,1705935381774,-712.03,0.00058082,120]
[312510057,1705935381813,-736.61,0.00058082,120]
[312510058,1705935381850,-4762.26,0.00058082,120]
[312510059,1705935381887,-2461.8,0.00058082,120]
[312510060,1705935381925,-1259.3,0.00058082,120]
[312510061,1705935381962,-1880.63,0.00058082,120]
[312510062,1705935381998,-1557.26,0.00058082,120]
[312510063,1705935382040,-793.99,0.00058082,120]
[312510064,1705935382077,-1379.69,0.00058082,120]
[312510065,1705935382114,-500.0,0.00058082,120]
[312510066,1705935382151,-2604.87,0.00058082,120]
[312510067,1705935382185,-932.81,0.00058082,120]
[312510068,1705935382223,-500.0,0.00058082,120]
[312510069,1705935382263,-500.0,0.00058082,120]
[312510070,1705935382300,-3105.23,0.00058082,120]
[312510071,1705935382335,-1967.28,0.00058082,120]
[312510072,1705935382370,-504.66,0.00058082,120]
[312510073,1705935382406,-2108.57,0.00058082,120]
[312510074,1705935382439,-5534.47,0.00058082,120]
[312510075,1705935382473,-1147.57,0.00058082,120]
[312510076,1705935382512,-2822.45,0.00058082,120]
[312510077,1705935382546,-1151.76,0.00058082,120]
[312510078,1705935382579,-504.79,0.00058082,120]
[312510079,1705935382613,-828.94,0.00058082,120]
[312510080,1705935382649,-1921.76,0.00058082,120]
[312510081,1705935382684,-500.0,0.00058082,120]
[312510082,1705935382721,-517.22,0.00058082,120]
[312510083,1705935382761,-836.23,0.00058082,120]
[312510084,1705935382795,-859.23,0.00058082,120]
[312510085,1705935382833,-2987.07,0.00058082,120]
[312510086,1705935382869,-500.0,0.00058082,120]
[312510087,1705935382903,-1485.29,0.00058082,120]
[312510088,1705935382937,-699.12,0.00058082,120]
[312510089,1705935382973,-1113.39,0.00058082,120]
[312510090,1705935383007,-209.64662334,0.00058082,120]
[312510091,1705935383044,-1325.84,0.00058082,120]
[312510092,1705935383079,-610.32,0.00058082,120]
[312510093,1705935383113,-500.0,0.00058082,120]
[312510094,1705935383147,-1197.96,0.00058082,120]
[312510095,1705935383182,-977.5,0.00058082,120]
[312510096,1705935383218,-1447.9,0.00058082,120]
[312510097,1705935383256,-680.84,0.00058082,120]
[312510098,1705935383295,-768.63,0.00058082,120]
[312510099,1705935383330,-6620.65,0.00058082,120]
[312510100,1705935383365,-4857.5,0.00058082,120]
[312510101,1705935383401,-500.0,0.00058082,120]
[312510102,1705935383440,-1199.49,0.00058082,120]
[312510103,1705935383477,-2086.5,0.00058082,120]
[312510104,1705935383519,-2054.67,0.00058082,120]
[312510105,1705935383561,-500.0,0.00058082,120]
[312510106,1705935383604,-500.0,0.00058082,120]
[312510107,1705935383644,-519.19,0.00058082,120]
[312510108,1705935383682,-886.41,0.00058082,120]
[312510109,1705935383718,-500.0,0.00058082,120]
[312510110,1705935383755,-10248.86,0.00058082,120]